[Event "Titled Tuesday Blitz November 08 Early 2022"]
[White "Madaminov, Mukhiddin"]
[Black "Dudzinski, Pawel"]
[WhiteFideId "14210703"]
[BlackFideId "1117890"]
[WhiteElo "2341"]
[BlackElo "2086"]
[Result "1-0"]
[Round "01"]
[TimeControl "180+1"]
[Date "2022.11.09"]
[WhiteClock "0:00:46"]
[BlackClock "0:00:28"]

1. d4 {[%clk 0:02:59]}  f5 {[%clk 0:02:52]} 2. Bg5 {[%clk 0:02:57]}  g6 {[%clk 0:02:48]} 3. h4 {[%clk 0:02:54]}  Bg7 {[%clk 0:02:47]} 4. e3 {[%clk 0:02:51]}  d6 {[%clk 0:02:43]} 5. Bc4 {[%clk 0:02:41]}  h6 {[%clk 0:02:24]} 6. Bf4 {[%clk 0:02:34]}  e5 {[%clk 0:02:21]} 7. dxe5 {[%clk 0:02:29]}  dxe5 {[%clk 0:02:22]} 8. Qxd8+ {[%clk 0:02:04]}  Kxd8 {[%clk 0:02:23]} 9. Bh2 {[%clk 0:02:01]}  Ke7 {[%clk 0:02:04]} 10. Nc3 {[%clk 0:01:58]}  c6 {[%clk 0:02:01]} 11. Nf3 {[%clk 0:01:57]}  Nd7 {[%clk 0:01:41]} 12. a4 {[%clk 0:01:56]}  e4 {[%clk 0:01:34]} 13. Nd4 {[%clk 0:01:52]}  Nb6 {[%clk 0:01:31]} 14. Bb3 {[%clk 0:01:26]}  Bxd4 {[%clk 0:01:27]} 15. exd4 {[%clk 0:01:23]}  Be6 {[%clk 0:01:25]} 16. a5 {[%clk 0:01:23]}  Bxb3 {[%clk 0:01:18]} 17. axb6 {[%clk 0:01:23]}  Bxc2 {[%clk 0:01:16]} 18. Rxa7 {[%clk 0:01:22]}  Nf6 {[%clk 0:01:12]} 19. Kd2 {[%clk 0:01:13]}  Bd3 {[%clk 0:01:06]} 20. Rxb7+ {[%clk 0:01:13]}  Ke6 {[%clk 0:01:05]} 21. Rc1 {[%clk 0:01:11]}  Ng4 {[%clk 0:00:38]} 22. Bg3 {[%clk 0:01:01]}  g5 {[%clk 0:00:36]} 23. f3 {[%clk 0:01:00]}  f4 {[%clk 0:00:30]} 24. Nxe4 {[%clk 0:00:51]}  Bxe4 {[%clk 0:00:28]} 25. fxe4 {[%clk 0:00:48]}  fxg3 {[%clk 0:00:28]} 26. Rxc6# {[%clk 0:00:46]} 1-0


[Site "https://www.chess.com"]

[Event "Titled Tuesday Blitz November 08 Early 2022"]
[White "Maghsoodloo, Parham"]
[Black "Ibadov, Dashgyn"]
[WhiteFideId "12539929"]
[BlackFideId "24107514"]
[WhiteElo "2676"]
[BlackElo "2208"]
[Result "1-0"]
[Round "01"]
[TimeControl "180+1"]
[Date "2022.11.08"]
[WhiteClock "0:01:51"]
[BlackClock "0:00:01"]

1. e4 {[%clk 0:03:00]}  e6 {[%clk 0:02:52]} 2. d4 {[%clk 0:02:59]}  d5 {[%clk 0:02:53]} 3. e5 {[%clk 0:02:59]}  c5 {[%clk 0:02:53]} 4. c3 {[%clk 0:02:59]}  Qb6 {[%clk 0:02:53]} 5. Nf3 {[%clk 0:02:58]}  Nc6 {[%clk 0:02:54]} 6. a3 {[%clk 0:02:58]}  Nh6 {[%clk 0:02:53]} 7. Bd3 {[%clk 0:02:58]}  cxd4 {[%clk 0:02:46]} 8. cxd4 {[%clk 0:02:57]}  Nf5 {[%clk 0:02:47]} 9. Bxf5 {[%clk 0:02:57]}  exf5 {[%clk 0:02:48]} 10. Nc3 {[%clk 0:02:57]}  Be6 {[%clk 0:02:49]} 11. b4 {[%clk 0:02:55]}  Be7 {[%clk 0:02:46]} 12. Bb2 {[%clk 0:02:54]}  g5 {[%clk 0:02:43]} 13. Na4 {[%clk 0:02:53]}  Qb5 {[%clk 0:02:31]} 14. Nc3 {[%clk 0:02:53]}  Qb6 {[%clk 0:02:28]} 15. Rc1 {[%clk 0:02:49]}  g4 {[%clk 0:02:24]} 16. Na4 {[%clk 0:02:49]}  Qb5 {[%clk 0:02:13]} 17. Nd2 {[%clk 0:02:41]}  h5 {[%clk 0:02:01]} 18. Nc5 {[%clk 0:02:38]}  h4 {[%clk 0:01:54]} 19. a4 {[%clk 0:02:38]}  Qxb4 {[%clk 0:01:46]} 20. Bc3 {[%clk 0:02:38]}  Qa3 {[%clk 0:01:45]} 21. Nxb7 {[%clk 0:02:34]}  h3 {[%clk 0:01:29]} 22. g3 {[%clk 0:02:29]}  Rb8 {[%clk 0:01:04]} 23. Nd6+ {[%clk 0:02:29]}  Bxd6 {[%clk 0:01:02]} 24. exd6 {[%clk 0:02:30]}  Qxd6 {[%clk 0:01:02]} 25. O-O {[%clk 0:02:30]}  Kf8 {[%clk 0:00:48]} 26. Nb3 {[%clk 0:02:30]}  Kg7 {[%clk 0:00:47]} 27. Bd2 {[%clk 0:02:30]}  Qa3 {[%clk 0:00:18]} 28. Nc5 {[%clk 0:02:30]}  Rbc8 {[%clk 0:00:16]} 29. Rc3 {[%clk 0:02:26]}  Qb2 {[%clk 0:00:14]} 30. Rb3 {[%clk 0:02:24]}  Qa2 {[%clk 0:00:13]} 31. Re1 {[%clk 0:02:23]}  Kg6 {[%clk 0:00:11]} 32. Bf4 {[%clk 0:02:17]}  Rhe8 {[%clk 0:00:09]} 33. Be3 {[%clk 0:02:09]}  a5 {[%clk 0:00:08]} 34. Re2 {[%clk 0:02:09]}  Qxe2 {[%clk 0:00:03]} 35. Qxe2 {[%clk 0:02:09]}  Nb4 {[%clk 0:00:04]} 36. Qd2 {[%clk 0:02:06]}  Rxc5 {[%clk 0:00:03]} 37. dxc5 {[%clk 0:02:06]}  d4 {[%clk 0:00:04]} 38. Rb1 {[%clk 0:02:01]}  dxe3 {[%clk 0:00:04]} 39. Qxe3 {[%clk 0:02:02]}  Rd8 {[%clk 0:00:02]} 40. Qe5 {[%clk 0:01:58]}  Rd2 {[%clk 0:00:02]} 41. Qc7 {[%clk 0:01:57]}  Nd3 {[%clk 0:00:02]} 42. Rf1 {[%clk 0:01:54]}  Bc4 {[%clk 0:00:02]} 43. Qxa5 {[%clk 0:01:54]}  Re2 {[%clk 0:00:02]} 44. Qc3 {[%clk 0:01:54]}  Ne5 {[%clk 0:00:01]} 45. c6 {[%clk 0:01:53]}  Nf3+ {[%clk 0:00:01]} 46. Kh1 {[%clk 0:01:54]}  Re4 {[%clk 0:00:01]} 47. c7 {[%clk 0:01:51]} 1-0


[Site "https://www.chess.com"]

[Event "Titled Tuesday Blitz November 08 Early 2022"]
[White "Matinian, Nikita"]
[Black "Seletsky, Grigory"]
[WhiteFideId "24129100"]
[BlackFideId "14112191"]
[WhiteElo "2422"]
[BlackElo "2492"]
[Result "1-0"]
[Round "01"]
[TimeControl "180+1"]
[Date "2022.11.09"]
[WhiteClock "0:00:52"]
[BlackClock "0:00:01"]

1. e4 {[%clk 0:03:00]}  e6 {[%clk 0:02:59]} 2. d4 {[%clk 0:02:59]}  d5 {[%clk 0:02:59]} 3. Nc3 {[%clk 0:03:00]}  Nc6 {[%clk 0:02:58]} 4. Nf3 {[%clk 0:02:59]}  Nf6 {[%clk 0:02:58]} 5. e5 {[%clk 0:02:59]}  Nd7 {[%clk 0:02:58]} 6. h4 {[%clk 0:02:59]}  f6 {[%clk 0:02:56]} 7. exf6 {[%clk 0:02:56]}  Nxf6 {[%clk 0:02:55]} 8. Bb5 {[%clk 0:02:55]}  Bd6 {[%clk 0:02:51]} 9. Bg5 {[%clk 0:02:47]}  O-O {[%clk 0:02:41]} 10. Qe2 {[%clk 0:02:41]}  h6 {[%clk 0:02:36]} 11. O-O-O {[%clk 0:02:37]}  a6 {[%clk 0:02:17]} 12. Bxc6 {[%clk 0:02:35]}  bxc6 {[%clk 0:02:14]} 13. Bd2 {[%clk 0:02:02]}  c5 {[%clk 0:02:05]} 14. g4 {[%clk 0:02:01]}  cxd4 {[%clk 0:02:03]} 15. Nxd4 {[%clk 0:02:00]}  e5 {[%clk 0:02:03]} 16. Nf5 {[%clk 0:01:55]}  Bxf5 {[%clk 0:01:37]} 17. gxf5 {[%clk 0:01:55]}  Qd7 {[%clk 0:01:29]} 18. Rhg1 {[%clk 0:01:54]}  Kh7 {[%clk 0:01:22]} 19. Qf3 {[%clk 0:01:34]}  e4 {[%clk 0:01:17]} 20. Qg2 {[%clk 0:01:34]}  Qf7 {[%clk 0:01:10]} 21. Bg5 {[%clk 0:01:33]}  c6 {[%clk 0:01:03]} 22. Bxf6 {[%clk 0:01:21]}  Qxf6 {[%clk 0:01:02]} 23. Nxe4 {[%clk 0:01:20]}  Bf4+ {[%clk 0:01:01]} 24. Nd2 {[%clk 0:01:20]}  Rae8 {[%clk 0:00:54]} 25. Qg6+ {[%clk 0:01:08]}  Qxg6 {[%clk 0:00:45]} 26. fxg6+ {[%clk 0:01:09]}  Kg8 {[%clk 0:00:44]} 27. Rde1 {[%clk 0:01:09]}  Bxd2+ {[%clk 0:00:41]} 28. Kxd2 {[%clk 0:01:09]}  Rxf2+ {[%clk 0:00:41]} 29. Kd3 {[%clk 0:01:09]}  Kf8 {[%clk 0:00:21]} 30. Rgf1 {[%clk 0:01:07]}  Re2 {[%clk 0:00:18]} 31. Rxe2 {[%clk 0:01:00]}  Rxf1 {[%clk 0:00:17]} 32. Re6 {[%clk 0:00:59]}  c5 {[%clk 0:00:15]} 33. Rxa6 {[%clk 0:00:57]}  Rf3+ {[%clk 0:00:15]} 34. Kd2 {[%clk 0:00:57]}  Rg3 {[%clk 0:00:11]} 35. Rc6 {[%clk 0:00:55]}  c4 {[%clk 0:00:08]} 36. a4 {[%clk 0:00:54]}  d4 {[%clk 0:00:06]} 37. Rxc4 {[%clk 0:00:53]}  Rxg6 {[%clk 0:00:04]} 38. Rxd4 {[%clk 0:00:54]}  Ra6 {[%clk 0:00:04]} 39. b3 {[%clk 0:00:51]}  Kf7 {[%clk 0:00:03]} 40. c4 {[%clk 0:00:52]}  Kf6 {[%clk 0:00:04]} 41. Kc3 {[%clk 0:00:52]}  Ke5 {[%clk 0:00:04]} 42. c5 {[%clk 0:00:52]}  Rf6 {[%clk 0:00:02]} 43. Kc4 {[%clk 0:00:52]}  Rf1 {[%clk 0:00:02]} 44. Rd5+ {[%clk 0:00:52]}  Ke4 {[%clk 0:00:01]} 45. Rd7 {[%clk 0:00:52]} 1-0


[Site "https://www.chess.com"]

[Event "Titled Tuesday Blitz November 08 Early 2022"]
[White "Matlakov, Maxim"]
[Black "Manukyan, Sargis A."]
[WhiteFideId "4168003"]
[BlackFideId "13303970"]
[WhiteElo "2669"]
[BlackElo "2187"]
[Result "1/2-1/2"]
[Round "01"]
[TimeControl "180+1"]
[Date "2022.11.08"]
[WhiteClock "0:00:03"]
[BlackClock "0:00:10"]

1. Nf3 {[%clk 0:02:58]}  Nf6 {[%clk 0:02:58]} 2. g3 {[%clk 0:02:58]}  c5 {[%clk 0:02:56]} 3. Bg2 {[%clk 0:02:58]}  Nc6 {[%clk 0:02:54]} 4. O-O {[%clk 0:02:58]}  g6 {[%clk 0:02:54]} 5. d4 {[%clk 0:02:54]}  cxd4 {[%clk 0:02:49]} 6. Nxd4 {[%clk 0:02:55]}  Bg7 {[%clk 0:02:48]} 7. c4 {[%clk 0:02:53]}  O-O {[%clk 0:02:47]} 8. Nc3 {[%clk 0:02:53]}  Ng4 {[%clk 0:02:47]} 9. e3 {[%clk 0:02:52]}  d6 {[%clk 0:02:45]} 10. b3 {[%clk 0:02:50]}  Nxd4 {[%clk 0:02:40]} 11. exd4 {[%clk 0:02:51]}  Nh6 {[%clk 0:02:40]} 12. Bb2 {[%clk 0:02:48]}  Rb8 {[%clk 0:02:36]} 13. Rc1 {[%clk 0:02:47]}  a6 {[%clk 0:02:36]} 14. a4 {[%clk 0:02:37]}  Nf5 {[%clk 0:02:26]} 15. Ne2 {[%clk 0:02:24]}  b5 {[%clk 0:02:24]} 16. axb5 {[%clk 0:02:11]}  axb5 {[%clk 0:02:23]} 17. c5 {[%clk 0:02:11]}  dxc5 {[%clk 0:02:19]} 18. Rxc5 {[%clk 0:02:11]}  Nd6 {[%clk 0:01:55]} 19. Qd2 {[%clk 0:02:05]}  Bb7 {[%clk 0:01:50]} 20. d5 {[%clk 0:02:03]}  Bxb2 {[%clk 0:01:38]} 21. Qxb2 {[%clk 0:02:04]}  Qb6 {[%clk 0:01:38]} 22. b4 {[%clk 0:01:59]}  Rfd8 {[%clk 0:01:29]} 23. Nc3 {[%clk 0:01:55]}  Rbc8 {[%clk 0:01:24]} 24. Rxc8 {[%clk 0:01:29]}  Rxc8 {[%clk 0:01:24]} 25. Qd2 {[%clk 0:01:30]}  Rc4 {[%clk 0:01:20]} 26. Re1 {[%clk 0:01:20]}  Qc7 {[%clk 0:01:15]} 27. Ne4 {[%clk 0:01:15]}  Nxe4 {[%clk 0:01:06]} 28. Bxe4 {[%clk 0:01:16]}  Qd6 {[%clk 0:01:05]} 29. Bf3 {[%clk 0:00:59]}  Rxb4 {[%clk 0:00:54]} 30. h4 {[%clk 0:00:59]}  h5 {[%clk 0:00:49]} 31. Qg5 {[%clk 0:00:54]}  Rd4 {[%clk 0:00:30]} 32. Rxe7 {[%clk 0:00:33]}  Bxd5 {[%clk 0:00:29]} 33. Re8+ {[%clk 0:00:33]}  Kg7 {[%clk 0:00:29]} 34. Rd8 {[%clk 0:00:33]}  Bxf3 {[%clk 0:00:18]} 35. Rxd6 {[%clk 0:00:32]}  Rxd6 {[%clk 0:00:19]} 36. Qe5+ {[%clk 0:00:32]}  Rf6 {[%clk 0:00:19]} 37. Qxb5 {[%clk 0:00:29]}  Re6 {[%clk 0:00:16]} 38. Qb4 {[%clk 0:00:14]}  Bc6 {[%clk 0:00:12]} 39. Qc3+ {[%clk 0:00:12]}  Kg8 {[%clk 0:00:11]} 40. f3 {[%clk 0:00:11]}  Kf8 {[%clk 0:00:08]} 41. g4 {[%clk 0:00:10]}  hxg4 {[%clk 0:00:08]} 42. fxg4 {[%clk 0:00:07]}  Kg8 {[%clk 0:00:08]} 43. Kh2 {[%clk 0:00:07]}  Be4 {[%clk 0:00:07]} 44. Kg3 {[%clk 0:00:08]}  Bb1 {[%clk 0:00:07]} 45. Kf4 {[%clk 0:00:07]}  Kh7 {[%clk 0:00:05]} 46. Qc7 {[%clk 0:00:04]}  Kg7 {[%clk 0:00:05]} 47. Kg3 {[%clk 0:00:03]}  Be4 {[%clk 0:00:05]} 48. Qc3+ {[%clk 0:00:03]}  Kh7 {[%clk 0:00:03]} 49. Qd4 {[%clk 0:00:04]}  Bc6 {[%clk 0:00:03]} 50. Kf2 {[%clk 0:00:04]}  Re4 {[%clk 0:00:03]} 51. Qd6 {[%clk 0:00:04]}  Rxg4 {[%clk 0:00:03]} 52. Qxc6 {[%clk 0:00:03]}  Rxh4 {[%clk 0:00:02]} 53. Qd7 {[%clk 0:00:04]}  Kg7 {[%clk 0:00:02]} 54. Qe7 {[%clk 0:00:03]}  Rh5 {[%clk 0:00:02]} 55. Kg3 {[%clk 0:00:03]}  Rf5 {[%clk 0:00:03]} 56. Qd7 {[%clk 0:00:02]}  Rh5 {[%clk 0:00:04]} 57. Qc7 {[%clk 0:00:02]}  Rf5 {[%clk 0:00:05]} 58. Qc3+ {[%clk 0:00:02]}  Kg8 {[%clk 0:00:05]} 59. Qc1 {[%clk 0:00:03]}  Kg7 {[%clk 0:00:05]} 60. Kg4 {[%clk 0:00:04]}  Rh5 {[%clk 0:00:06]} 61. Qb2+ {[%clk 0:00:04]}  Kg8 {[%clk 0:00:06]} 62. Qb7 {[%clk 0:00:04]}  Rf5 {[%clk 0:00:07]} 63. Qc7 {[%clk 0:00:04]}  Kg7 {[%clk 0:00:08]} 64. Qd7 {[%clk 0:00:05]}  Kg8 {[%clk 0:00:09]} 65. Qd4 {[%clk 0:00:04]}  Kh7 {[%clk 0:00:09]} 66. Qd7 {[%clk 0:00:04]}  Kg8 {[%clk 0:00:09]} 67. Kg3 {[%clk 0:00:04]}  Kg7 {[%clk 0:00:09]} 68. Qc7 {[%clk 0:00:04]}  Kg8 {[%clk 0:00:09]} 69. Qa7 {[%clk 0:00:04]}  Kg7 {[%clk 0:00:10]} 70. Kg4 {[%clk 0:00:05]}  Kg8 {[%clk 0:00:10]} 71. Qb8+ {[%clk 0:00:03]} 1/2-1/2


[Site "https://www.chess.com"]

[Event "Titled Tuesday Blitz November 08 Early 2022"]
[White "Matveeva, Olga"]
[Black "Kowalczyk, Pawel"]
[WhiteFideId "24107018"]
[BlackFideId "1130641"]
[WhiteElo "2055"]
[BlackElo "2324"]
[Result "0-1"]
[Round "01"]
[TimeControl "180+1"]
[Date "2022.11.09"]
[WhiteClock "0:00:49"]
[BlackClock "0:01:52"]

1. d4 {[%clk 0:02:58]}  Nf6 {[%clk 0:02:59]} 2. c4 {[%clk 0:02:57]}  c5 {[%clk 0:03:00]} 3. d5 {[%clk 0:02:56]}  b5 {[%clk 0:03:00]} 4. cxb5 {[%clk 0:02:56]}  a6 {[%clk 0:03:00]} 5. bxa6 {[%clk 0:02:57]}  Bxa6 {[%clk 0:03:01]} 6. Nc3 {[%clk 0:02:56]}  d6 {[%clk 0:03:00]} 7. g3 {[%clk 0:02:56]}  g6 {[%clk 0:03:00]} 8. Bg2 {[%clk 0:02:56]}  Bg7 {[%clk 0:03:01]} 9. Nf3 {[%clk 0:02:56]}  O-O {[%clk 0:03:01]} 10. O-O {[%clk 0:02:56]}  Nbd7 {[%clk 0:03:01]} 11. Rb1 {[%clk 0:02:56]}  Qb6 {[%clk 0:02:56]} 12. b3 {[%clk 0:02:54]}  Rfb8 {[%clk 0:02:54]} 13. Qc2 {[%clk 0:02:53]}  Bb7 {[%clk 0:02:47]} 14. Rd1 {[%clk 0:02:51]}  Qa6 {[%clk 0:02:47]} 15. Bb2 {[%clk 0:02:37]}  Nb6 {[%clk 0:02:43]} 16. Ne1 {[%clk 0:02:28]}  Nfd7 {[%clk 0:02:39]} 17. e4 {[%clk 0:02:16]}  Qa5 {[%clk 0:02:37]} 18. Qd2 {[%clk 0:01:43]}  c4 {[%clk 0:02:35]} 19. Nc2 {[%clk 0:01:39]}  cxb3 {[%clk 0:02:33]} 20. axb3 {[%clk 0:01:40]}  Nc8 {[%clk 0:02:24]} 21. b4 {[%clk 0:01:39]}  Qb6 {[%clk 0:02:22]} 22. Ra1 {[%clk 0:01:32]}  Ne5 {[%clk 0:02:20]} 23. Qe2 {[%clk 0:01:14]}  Ba6 {[%clk 0:02:15]} 24. b5 {[%clk 0:01:12]}  Bb7 {[%clk 0:02:11]} 25. Nd4 {[%clk 0:01:09]}  Rxa1 {[%clk 0:02:07]} 26. Rxa1 {[%clk 0:01:09]}  Qxd4 {[%clk 0:02:05]} 27. Na4 {[%clk 0:00:56]}  Qc4 {[%clk 0:02:02]} 28. Qd2 {[%clk 0:00:52]}  Ra8 {[%clk 0:01:58]} 29. Bf1 {[%clk 0:00:49]}  Qb3 {[%clk 0:01:52]} 0-1


[Site "https://www.chess.com"]

[Event "Titled Tuesday Blitz November 08 Early 2022"]
[White "Melikyan, Gnel"]
[Black "Wiegmann, Sascha"]
[WhiteFideId "54109990"]
[BlackFideId "4682041"]
[WhiteElo "2138"]
[BlackElo "2297"]
[Result "1-0"]
[Round "01"]
[TimeControl "180+1"]
[Date "2022.11.09"]
[WhiteClock "0:00:32"]
[BlackClock "0:00:01"]

1. e4 {[%clk 0:02:58]}  c5 {[%clk 0:02:58]} 2. Nf3 {[%clk 0:02:58]}  d6 {[%clk 0:02:58]} 3. d4 {[%clk 0:02:59]}  cxd4 {[%clk 0:02:59]} 4. Nxd4 {[%clk 0:02:59]}  Nf6 {[%clk 0:02:59]} 5. f3 {[%clk 0:03:00]}  a6 {[%clk 0:03:00]} 6. c4 {[%clk 0:03:00]}  g6 {[%clk 0:02:59]} 7. Nc3 {[%clk 0:03:00]}  Bg7 {[%clk 0:03:00]} 8. Be3 {[%clk 0:03:00]}  O-O {[%clk 0:03:01]} 9. Qd2 {[%clk 0:03:01]}  Re8 {[%clk 0:02:59]} 10. g4 {[%clk 0:03:00]}  Nc6 {[%clk 0:02:57]} 11. h4 {[%clk 0:03:00]}  Bxg4 {[%clk 0:01:58]} 12. fxg4 {[%clk 0:02:57]}  Nxg4 {[%clk 0:01:59]} 13. Nxc6 {[%clk 0:02:49]}  bxc6 {[%clk 0:02:00]} 14. Be2 {[%clk 0:02:47]}  Nxe3 {[%clk 0:01:55]} 15. Qxe3 {[%clk 0:02:48]}  Rb8 {[%clk 0:01:55]} 16. Qd2 {[%clk 0:02:34]}  Qa5 {[%clk 0:01:29]} 17. Rh3 {[%clk 0:02:33]}  h5 {[%clk 0:01:00]} 18. b3 {[%clk 0:02:17]}  Qe5 {[%clk 0:00:35]} 19. Rc1 {[%clk 0:02:13]}  Kh7 {[%clk 0:00:33]} 20. Qg5 {[%clk 0:02:07]}  Qe6 {[%clk 0:00:29]} 21. Qg2 {[%clk 0:02:04]}  a5 {[%clk 0:00:19]} 22. Rd1 {[%clk 0:01:52]}  Bh6 {[%clk 0:00:16]} 23. Rf3 {[%clk 0:01:50]}  Rf8 {[%clk 0:00:15]} 24. Qf2 {[%clk 0:01:48]}  Kg7 {[%clk 0:00:14]} 25. Qd4+ {[%clk 0:01:47]}  Kh7 {[%clk 0:00:14]} 26. Kf1 {[%clk 0:01:43]}  Bg7 {[%clk 0:00:14]} 27. Qd3 {[%clk 0:01:41]}  Qg4 {[%clk 0:00:10]} 28. Rh3 {[%clk 0:01:41]}  Qf4+ {[%clk 0:00:09]} 29. Qf3 {[%clk 0:01:41]}  Qe5 {[%clk 0:00:09]} 30. Kg2 {[%clk 0:01:38]}  f5 {[%clk 0:00:09]} 31. Qg3 {[%clk 0:01:33]}  f4 {[%clk 0:00:08]} 32. Qf3 {[%clk 0:01:31]}  Rf7 {[%clk 0:00:08]} 33. Kh1 {[%clk 0:01:30]}  Rg8 {[%clk 0:00:07]} 34. Rg1 {[%clk 0:01:31]}  Bh8 {[%clk 0:00:07]} 35. Nd1 {[%clk 0:01:22]}  Bf6 {[%clk 0:00:07]} 36. Nf2 {[%clk 0:01:21]}  a4 {[%clk 0:00:07]} 37. Nd3 {[%clk 0:01:21]}  Qd4 {[%clk 0:00:07]} 38. Nf2 {[%clk 0:01:12]}  axb3 {[%clk 0:00:06]} 39. axb3 {[%clk 0:01:13]}  Ra8 {[%clk 0:00:05]} 40. Qg2 {[%clk 0:01:07]}  Rg7 {[%clk 0:00:05]} 41. Rd3 {[%clk 0:01:04]}  Qc5 {[%clk 0:00:04]} 42. Nh3 {[%clk 0:01:04]}  Bxh4 {[%clk 0:00:03]} 43. Nxf4 {[%clk 0:00:59]}  Qe5 {[%clk 0:00:03]} 44. Nh3 {[%clk 0:00:54]}  Ra2 {[%clk 0:00:02]} 45. Qf3 {[%clk 0:00:50]}  Bf6 {[%clk 0:00:02]} 46. Nf4 {[%clk 0:00:41]}  Rb2 {[%clk 0:00:02]} 47. Rdd1 {[%clk 0:00:35]}  Bg5 {[%clk 0:00:01]} 48. Nh3 {[%clk 0:00:33]}  Bh6 {[%clk 0:00:01]} 49. Rg2 {[%clk 0:00:32]} 1-0


[Site "https://www.chess.com"]

[Event "Titled Tuesday Blitz November 08 Early 2022"]
[White "Milikow, Yoav"]
[Black "Begunov, Konstantin"]
[WhiteFideId "2822237"]
[BlackFideId "4118510"]
[WhiteElo "2341"]
[BlackElo "2140"]
[Result "1-0"]
[Round "01"]
[TimeControl "180+1"]
[Date "2022.11.09"]
[WhiteClock "0:00:59"]
[BlackClock "0:00:11"]

1. d4 {[%clk 0:03:00]}  d5 {[%clk 0:02:59]} 2. c4 {[%clk 0:03:00]}  c6 {[%clk 0:03:00]} 3. Nf3 {[%clk 0:03:00]}  Nf6 {[%clk 0:03:00]} 4. g3 {[%clk 0:03:00]}  Bf5 {[%clk 0:03:00]} 5. Nc3 {[%clk 0:02:59]}  e6 {[%clk 0:03:00]} 6. Nh4 {[%clk 0:02:59]}  Bg4 {[%clk 0:02:59]} 7. h3 {[%clk 0:02:58]}  Bh5 {[%clk 0:02:59]} 8. g4 {[%clk 0:02:58]}  Ne4 {[%clk 0:02:54]} 9. gxh5 {[%clk 0:02:48]}  Qxh4 {[%clk 0:02:51]} 10. Nxe4 {[%clk 0:02:45]}  Qxe4 {[%clk 0:02:39]} 11. Rg1 {[%clk 0:02:44]}  Qh4 {[%clk 0:02:15]} 12. e3 {[%clk 0:02:37]}  Bb4+ {[%clk 0:02:15]} 13. Bd2 {[%clk 0:02:36]}  Bxd2+ {[%clk 0:02:14]} 14. Qxd2 {[%clk 0:02:37]}  g6 {[%clk 0:01:53]} 15. hxg6 {[%clk 0:02:35]}  hxg6 {[%clk 0:01:52]} 16. Qb4 {[%clk 0:02:35]}  Qe7 {[%clk 0:01:50]} 17. c5 {[%clk 0:02:23]}  b6 {[%clk 0:01:49]} 18. Qc3 {[%clk 0:02:14]}  bxc5 {[%clk 0:01:42]} 19. dxc5 {[%clk 0:02:15]}  e5 {[%clk 0:01:41]} 20. O-O-O {[%clk 0:02:12]}  Nd7 {[%clk 0:01:40]} 21. b4 {[%clk 0:02:11]}  O-O {[%clk 0:01:23]} 22. Bd3 {[%clk 0:01:52]}  a5 {[%clk 0:01:23]} 23. a3 {[%clk 0:01:46]}  axb4 {[%clk 0:01:21]} 24. axb4 {[%clk 0:01:47]}  Ra4 {[%clk 0:00:58]} 25. Bc2 {[%clk 0:01:43]}  Ra2 {[%clk 0:00:52]} 26. e4 {[%clk 0:01:37]}  dxe4 {[%clk 0:00:19]} 27. Qb3 {[%clk 0:01:36]}  Rfa8 {[%clk 0:00:17]} 28. Rxg6+ {[%clk 0:01:35]}  Kf8 {[%clk 0:00:18]} 29. Rgd6 {[%clk 0:01:31]}  Ra1+ {[%clk 0:00:17]} 30. Bb1 {[%clk 0:01:29]}  Nf6 {[%clk 0:00:17]} 31. Qe3 {[%clk 0:01:23]}  Nd5 {[%clk 0:00:16]} 32. Qh6+ {[%clk 0:01:22]}  Ke8 {[%clk 0:00:15]} 33. Qh8+ {[%clk 0:01:17]}  Qf8 {[%clk 0:00:15]} 34. Qxe5+ {[%clk 0:01:18]}  Qe7 {[%clk 0:00:15]} 35. Qh8+ {[%clk 0:01:08]}  Qf8 {[%clk 0:00:15]} 36. Qd4 {[%clk 0:01:08]}  Qe7 {[%clk 0:00:13]} 37. Rxc6 {[%clk 0:01:06]}  Nxb4 {[%clk 0:00:13]} 38. Qxb4 {[%clk 0:01:03]}  Qg5+ {[%clk 0:00:13]} 39. Qd2 {[%clk 0:01:00]}  Qe5 {[%clk 0:00:13]} 40. Qd7+ {[%clk 0:00:59]}  Kf8 {[%clk 0:00:13]} 41. Qd6+ {[%clk 0:00:59]}  Qxd6 {[%clk 0:00:13]} 42. cxd6 {[%clk 0:01:00]}  R8a4 {[%clk 0:00:11]} 43. d7 {[%clk 0:00:59]} 1-0


[Site "https://www.chess.com"]

[Event "Titled Tuesday Blitz November 08 Early 2022"]
[White "Miszler, Levente"]
[Black "Grandelius, Nils"]
[WhiteFideId "763276"]
[BlackFideId "1710400"]
[WhiteElo "2176"]
[BlackElo "2617"]
[Result "0-1"]
[Round "01"]
[TimeControl "180+1"]
[Date "2022.11.08"]
[WhiteClock "0:00:02"]
[BlackClock "0:00:16"]

1. Nf3 {[%clk 0:02:53]}  g6 {[%clk 0:02:56]} 2. c4 {[%clk 0:02:52]}  Bg7 {[%clk 0:02:56]} 3. g3 {[%clk 0:02:48]}  c5 {[%clk 0:02:51]} 4. Bg2 {[%clk 0:02:47]}  Nc6 {[%clk 0:02:52]} 5. O-O {[%clk 0:02:47]}  d6 {[%clk 0:02:50]} 6. Nc3 {[%clk 0:02:45]}  Bg4 {[%clk 0:02:50]} 7. d3 {[%clk 0:02:42]}  e6 {[%clk 0:02:48]} 8. Rb1 {[%clk 0:02:41]}  Nge7 {[%clk 0:02:47]} 9. a3 {[%clk 0:02:40]}  O-O {[%clk 0:02:44]} 10. Bd2 {[%clk 0:02:39]}  Rc8 {[%clk 0:02:37]} 11. b4 {[%clk 0:02:37]}  b6 {[%clk 0:02:38]} 12. h3 {[%clk 0:02:37]}  Bxf3 {[%clk 0:02:37]} 13. Bxf3 {[%clk 0:02:38]}  Qd7 {[%clk 0:02:17]} 14. Bg2 {[%clk 0:02:27]}  Rfd8 {[%clk 0:02:16]} 15. e4 {[%clk 0:02:24]}  Nd4 {[%clk 0:02:14]} 16. Ne2 {[%clk 0:02:22]}  Nec6 {[%clk 0:02:11]} 17. Be3 {[%clk 0:02:19]}  Nxe2+ {[%clk 0:02:11]} 18. Qxe2 {[%clk 0:02:19]}  Nd4 {[%clk 0:02:11]} 19. Bxd4 {[%clk 0:02:18]}  Bxd4 {[%clk 0:02:11]} 20. Kh2 {[%clk 0:02:18]}  Qa4 {[%clk 0:02:11]} 21. Qa2 {[%clk 0:01:56]}  cxb4 {[%clk 0:02:01]} 22. Rxb4 {[%clk 0:01:57]}  Qd7 {[%clk 0:01:57]} 23. a4 {[%clk 0:01:51]}  Rc5 {[%clk 0:01:57]} 24. Rb5 {[%clk 0:01:48]}  Rdc8 {[%clk 0:01:52]} 25. Rfb1 {[%clk 0:01:44]}  Kg7 {[%clk 0:01:48]} 26. a5 {[%clk 0:01:43]}  bxa5 {[%clk 0:01:46]} 27. f4 {[%clk 0:01:11]}  Rxb5 {[%clk 0:01:42]} 28. Rxb5 {[%clk 0:01:11]}  Bb6 {[%clk 0:01:41]} 29. Qb2+ {[%clk 0:00:59]}  Kg8 {[%clk 0:01:41]} 30. h4 {[%clk 0:00:59]}  Rc5 {[%clk 0:01:34]} 31. e5 {[%clk 0:00:47]}  dxe5 {[%clk 0:01:25]} 32. Rxc5 {[%clk 0:00:46]}  Bxc5 {[%clk 0:01:26]} 33. Qxe5 {[%clk 0:00:45]}  Bb4 {[%clk 0:01:02]} 34. d4 {[%clk 0:00:39]}  a4 {[%clk 0:00:58]} 35. d5 {[%clk 0:00:38]}  a3 {[%clk 0:00:54]} 36. Qb8+ {[%clk 0:00:33]}  Bf8 {[%clk 0:00:54]} 37. Qb3 {[%clk 0:00:17]}  Qd6 {[%clk 0:00:46]} 38. c5 {[%clk 0:00:14]}  Qxc5 {[%clk 0:00:40]} 39. dxe6 {[%clk 0:00:14]}  Qe7 {[%clk 0:00:29]} 40. exf7+ {[%clk 0:00:13]}  Kg7 {[%clk 0:00:30]} 41. Bd5 {[%clk 0:00:09]}  Qf6 {[%clk 0:00:23]} 42. Kh3 {[%clk 0:00:07]}  a5 {[%clk 0:00:21]} 43. h5 {[%clk 0:00:06]}  Qf5+ {[%clk 0:00:20]} 44. Kg2 {[%clk 0:00:05]}  gxh5 {[%clk 0:00:16]} 45. Qc3+ {[%clk 0:00:04]}  Qf6 {[%clk 0:00:15]} 46. Qb3 {[%clk 0:00:04]}  h4 {[%clk 0:00:15]} 47. gxh4 {[%clk 0:00:04]}  Qxf4 {[%clk 0:00:15]} 48. Qg3+ {[%clk 0:00:04]}  Qxg3+ {[%clk 0:00:14]} 49. Kxg3 {[%clk 0:00:04]}  Kf6 {[%clk 0:00:15]} 50. Kf3 {[%clk 0:00:04]}  Ke5 {[%clk 0:00:16]} 51. Ba2 {[%clk 0:00:03]}  Kd4 {[%clk 0:00:16]} 52. Ke2 {[%clk 0:00:02]}  Kc3 {[%clk 0:00:16]} 53. Be6 {[%clk 0:00:01]}  Kb2 {[%clk 0:00:17]} 54. Kd3 {[%clk 0:00:01]}  a2 {[%clk 0:00:16]} 55. Bxa2 {[%clk 0:00:02]}  Kxa2 {[%clk 0:00:16]} 56. Kc4 {[%clk 0:00:03]}  Ka3 {[%clk 0:00:15]} 57. Kb5 {[%clk 0:00:03]}  a4 {[%clk 0:00:15]} 58. h5 {[%clk 0:00:02]}  Kb3 {[%clk 0:00:16]} 0-1


[Site "https://www.chess.com"]